Cogmind - Beta 14 @@@ ROGUE MODE // 2025.05.05 @ 14:26:38 Player: Quartz Result: Destroyed by G-47 Trooper with Particle Gun Performance ------------- Evolutions (0) 0 Regions Visited (1) 200 Robots Destroyed (18) 90 Value Destroyed (365) 365 Prototype IDs (0) 0 Alien Tech Used (0) 0 Bonus (0) 0 TOTAL SCORE: 655 Bonus ------- None Cogmind --------- Core Integrity 0/250 Matter 283/300 Energy 125/125 System Corruption 0% Temperature Danger (440) Movement Core (450) Ox8 Location -10/Materials Parts ------- > --- POWER (1) -------- Light Ion Engine > --- PROPULSION (2) --- (None) > --- UTILITY (2) ------ Large Storage Unit Targeting Computer > --- WEAPON (2) ------- Beam Cannon Light Assault Rifle > --- INVENTORY (15) --- Aluminum Leg Aluminum Leg Aluminum Leg Signal Interpreter Signal Interpreter Utility Shielding Beam Cannon Light Assault Rifle Grenade Launcher Peak State ------------ > --- POWER ------------ Light Ion Engine > --- PROPULSION ------- Aluminum Leg Aluminum Leg > --- UTILITY ---------- Small Storage Unit Targeting Computer > --- WEAPON ----------- Light Assault Rifle Light Assault Rifle > --- INVENTORY -------- Aluminum Leg Aluminum Leg Aluminum Leg Signal Interpreter Signal Interpreter Grenade Launcher [Rating: 7] Favorites ----------- Power Light Ion Engine Engine Light Ion Engine Propulsion Aluminum Leg Leg Aluminum Leg Utility Targeting Computer Storage Large Storage Unit Processor Targeting Computer Weapon Light Assault Rifle Energy Gun Medium Laser Energy Cannon Beam Cannon Ballistic Gun Light Assault Rifle Build | -11 -10 ------- Run | Yrd Mat Slots Evolved . | . . Power . | . . Propulsion . | . . Utility . | . . Weapon . | . . Parts Attached 11 | 4 7 Power 2 | 1 1 Engine 2 | 1 1 Core . | . . Reactor . | . . Propulsion 2 | 1 1 Treads . | . . Leg 2 | 1 1 Wheel . | . . Hover . | . . Flight . | . . Utility 3 | 1 2 Device . | . . Storage 2 | 1 1 Processor 1 | . 1 Hackware . | . . Protection . | . . Artifact . | . . Weapon 4 | 1 3 Energy Gun 1 | 1 . Energy Cannon 1 | . 1 Ballistic Gun 2 | . 2 Ballistic Cannon . | . . Launcher . | . . Special Weapon . | . . Impact Weapon . | . . Slashing Weapon . | . . Piercing Weapon . | . . Special Melee Weapon . | . . Unidentified Prototypes . | . . Parts Lost 4 | . 4 Power 1 | . 1 Propulsion 2 | . 2 Utility . | . . Weapon 1 | . 1 Highest Loss Streak 2 | . 2 To Critical Strikes . | . . Average Slot Usage (%) 89 | . 89 Engine 12 | . 12 Leg 25 | . 25 Storage 14 | . 14 Processor 9 | . 9 Energy Gun 3 | . 3 Energy Cannon 2 | . 2 Ballistic Gun 18 | . 18 Peak Build Rating 7 | 4 7 Average Rating 5 | 3 6 On Entrance 2 | . 4 Naked Turns . | . . Heaviest Build 27 | 12 27 Greatest Support 20 | 10 20 Greatest Overweight (x) 1 | 1 1 Average Overweight (x) . | . . Largest Inventory Capacity 15 | 8 15 Average Capacity 11 | 7 12 Most Carried 9 | 5 9 Average Carried 5 | 2 6 Final Capacity 15 | 8 15 Final Carried 9 | 3 9 Class Distribution -------------------- 100% | Mutant Dominant Class ---------------- Mutant | -10/Materials Resources | -11 -10 ----------- Run | Yrd Mat Matter Collected 367 | 141 226 Remotely . | . . Salvage Created 522 | . 522 Parts 36 | . 36 Haulers Intercepted 2 | . 2 Recyclers Shooed 2 | . 2 Parts Field Recycled . | . . Retrieved Matter . | . . Parts Self-Destructed . | . . Prevented . | . . Kills | -11 -10 ------- Run | Yrd Mat Combat Hostiles Destroyed 12 | . 12 Guns 11 | . 11 Cannons 1 | . 1 Classes Destroyed 5 | . 5 Hauler 2 | . 2 Operator 1 | . 1 Watcher 3 | . 3 Swarmer 6 | . 6 Grunt 6 | . 6 Best Kill Streak 4 | . 4 Combat Bots Only 4 | . 4 Max Kills in Single Turn 1 | . 1 Gunslinging . | . . Exploded . | . . Melee . | . . Uniques/NPCs Destroyed . | . . Combat | -11 -10 -------- Run | Yrd Mat Hostile Shots Fired 83 | . 83 Missed 18 | . 18 Damage Taken 803 | . 803 Core 250 | . 250 Absorbed by Shields . | . . Core Remaining (%) 100 | 100 . Volleys Fired 82 | . 82 Largest 2 | . 2 Hottest 80 | . 80 Shots Fired 142 | . 142 Gun 118 | . 118 Cannon 24 | . 24 Launcher . | . . Special . | . . Kinetic 94 | . 94 Thermal 48 | . 48 Explosive . | . . Electromagnetic . | . . Robot Hit Streak 8 | . 8 Robot Miss Streak 5 | . 5 Penetration Max . | . . Secondary Targets . | . . Shots Hit Robots 88 | . 88 Core Hits 32 | . 32 Critical Kills 1 | . 1 Critical Parts Destroyed 1 | . 1 Critical Strikes 2 | . 2 Destroy 2 | . 2 Melee Attacks . | . . Impact . | . . Slashing . | . . Piercing . | . . Sneak Attacks . | . . Combat Hostiles . | . . Follow-up Attacks . | . . Damage Inflicted 947 | . 947 Guns 677 | . 677 Cannons 270 | . 270 Explosions . | . . Melee . | . . Ramming . | . . Kinetic 447 | . 447 Thermal 500 | . 500 Explosive . | . . Electromagnetic . | . . Impact . | . . Slashing . | . . Piercing . | . . Highest Corruption . | . . Average Corruption . | . . Corruption Purged . | . . Corruption Blocked . | . . Overload Shots . | . . Overflow Damage 23 | . 23 Projectiles 23 | . 23 Explosions . | . . Melee . | . . Knockbacks . | . . Impact . | . . Kinetic . | . . Secondary . | . . Self-Inflicted Damage . | . . Shots . | . . Rammed . | . . Targets Rammed . | . . Kicked . | . . Crushed . | . . Highest Temperature 451 | . 451 Average Temperature 117 | . 117 Received Heat Transfer 393 | . 393 Effects 4 | . 4 Energy Bleed 1 | . 1 Interference 3 | . 3 Siege Activations . | . . Robots Corrupted . | . . Combat Hostiles . | . . Parts Fried . | . . Impact Corruptions . | . . Robots Melted . | . . Combat Hostiles . | . . Parts Melted 4 | . 4 Heat Transferred 1221 | . 1221 Parts Sabotaged . | . . Parts Stolen . | . . Parts Stripped . | . . Power Chain Reactions . | . . Alert | -11 -10 ------- Run | Yrd Mat Peak Influence 369 | . 369 Initial . | . . Average 153 | . 168 Maximum Alert Level 1 | . 1 Low Security (%) 76 | 100 74 Level 1 23 | . 25 Level 2 . | . . Level 3 . | . . Level 4 . | . . Level 5 . | . . High Security . | . . Max Security . | . . Squads Dispatched 2 | . 2 Investigation . | . . Extermination . | . . Reinforcement 2 | . 2 Assault . | . . Garrison . | . . Intercept . | . . Searches Triggered . | . . Construction Impeded . | . . Haulers Reinforced . | . . Active Scanning Responses . | . . Cargo Convoy Interrupts . | . . Stealth | -11 -10 --------- Run | Yrd Mat Distress Signals 1 | . 1 Communications Jammed . | . . Distress Signals . | . . Times Spotted 25 | . 25 Peak Tracking Total 4 | . 4 Tactical Retreats 2 | . 2 Traps | -11 -10 ------- Run | Yrd Mat Traps Triggered 1 | . 1 Indirectly . | . . Trap Hack Attempts . | . . Triggered . | . . Disarmed . | . . Reprogrammed . | . . Reused . | . . Traps Extracted . | . . Installed . | . . Triggered . | . . Machines | -11 -10 ---------- Run | Yrd Mat Machines Disabled 2 | . 2 Max in Single Turn 1 | . 1 Machines Repaired . | . . Machines Dismantled . | . . Machines Sabotaged . | . . Overloaded Fab Kills . | . . Hacking | -11 -10 --------- Run | Yrd Mat Machines Accessed 2 | . 2 Terminals 2 | . 2 Fabricators . | . . Repair Stations . | . . Recycling Units . | . . Scanalyzers . | . . Garrison Access . | . . Total Hacks 7 | . 7 Successful 5 | . 5 Failed 2 | . 2 Catastrophic . | . . Database Lockouts . | . . Manual 7 | . 7 Terminals 7 | . 7 Fabricators . | . . Repair Stations . | . . Recycling Units . | . . Scanalyzers . | . . Garrison Access . | . . Terminal Hacks 4 | . 4 Robot Analysis 2 | . 2 Terminal Index 1 | . 1 Recycling Unit Index 1 | . 1 Fabricator Hacks . | . . Repair Station Hacks . | . . Recycling Unit Hacks . | . . Scanalyzer . | . . Garrison Access Hacks . | . . Unauthorized Hacks 1 | . 1 Terminals 1 | . 1 Botnet 1 | . 1 Fabricators . | . . Repair Stations . | . . Recycling Units . | . . Scanalyzers . | . . Garrison Access . | . . Data Cores Recovered . | . . Used . | . . Hacking Detections 2 | . 2 Full Trace Events . | . . Feedback Events . | . . Feedback Blocked . | . . Robot Schematics Acquired . | . . Robots Built . | . . Authchips . | . . Time . | . . Total Robot Build Rating . | . . Part Schematics Acquired . | . . Parts Built . | . . Authchips . | . . Time . | . . Total Part Build Rating . | . . Parts Repaired . | . . Time . | . . Parts Recycled . | . . Recycled Matter . | . . Retrieved Matter . | . . Retrieved Components . | . . Parts Scanalyzed . | . . Part Schematics Acquired . | . . Parts Damaged . | . . Bothacking | -11 -10 ------------ Run | Yrd Mat Used RIF Installer . | . . Robots Hacked . | . . Non-combat . | . . Combat . | . . Robot Hacks Applied . | . . Relay Couplers Released . | . . Fabnet Peak Effective % . | . . Robots Rewired . | . . Allies Hacked . | . . Hacks Repelled . | . . Allies | -11 -10 -------- Run | Yrd Mat Total Allies . | . . Largest Group . | . . Highest-Rated Group . | . . Highest-Rated Ally . | . . Total Orders . | . . Ally Attacks . | . . Total Damage . | . . Kills . | . . Allies Corrupted . | . . Allies Melted . | . . Intel | -11 -10 ------- Run | Yrd Mat Robot Analysis Total 2 | . 2 Derelict Logs Recovered . | . . Drone Launches . | . . Drone Recoveries . | . . Exploration | -11 -10 ------------- Run | Yrd Mat Turns Passed 931 | 86 845 Spaces Moved 372 | 53 319 Core 17 | 17 . Treads . | . . Legs 355 | 36 319 Wheels . | . . Hover . | . . Flight . | . . Fastest Speed 50 | 50 120 Average Speed 162 | 145 164 Slowest Speed 190 | 190 190 Overloaded Moves . | . . Propulsion Burnouts . | . . Robots Hopped . | . . Cave-ins Triggered . | . . Exploration Rate (%) 24 | 5 44 Regions Visited 1 Branch Regions . Pre-discovered Areas . | . . Known Exits Taken . | . . Unknown Exits Taken 1 | 1 . Scrap Searched . | . . Spaces Dug . | . . Terrain Destroyed . | . . Melee . | . . Projectile . | . . AOE . | . . Terrain Rammed . | . . Walls Destroyed . | . . Machines Disabled . | . . Actions | -11 -10 --------- Run | Yrd Mat Total 577 | 63 514 Wait 93 | . 93 Move 371 | 52 319 Hop . | . . Pick Up 19 | 7 12 Fast Attach . | . . Attach 9 | 4 5 Detach . | . . Swap 2 | . 2 Drop 1 | . 1 Fire 82 | . 82 Melee . | . . Ram . | . . Kick . | . . Crush . | . . Escape Stasis . | . . Rewire . | . . Trap . | . . Miscellaneous . | . . Route ------- -11/Scrapyard -10/Materials (discovered 2 exits: [*Mat] / [*Min]) History --------- Turn | Location | Event 7 | -11/Scrapyard | Discovered new exit (range 16) 87 | -11/Scrapyard | Entered Materials 316 | -10/Materials | Build established: Mutant 418 | -10/Materials | Core integrity fell below 50% 514 | -10/Materials | Discovered new exit (range 10) 822 | -10/Materials | Discovered new exit (range 16) 917 | -10/Materials | Core integrity fell below 20% 932 | -10/Materials | Destroyed by G-47 Trooper with Particle Gun Last Messages --------------- 00838_ Acquired 11 matter. 00846_ R-06 Scavenger collects Sml. Laser. 00850_ R-06 Scavenger collects Aluminum Leg. 00854_ R-06 Scavenger collects Ion Engine. 00872_ Destroyed Hover Unit. 00874_ K-01 Serf collects debris. 00906_ Destroyed Lgt. Ion Engine. 00906_ O-16 Technician destroyed. 00908_ Aluminum Leg destroyed. 00915_ Heat Sink melted. 00915_ G-34 Mercenary destroyed. 00915_ K-01 Serf collects debris. 00924_ Critical hit (Burn: +37). 00927_ Overheating: Energy bleed (-19). 00928_ K-01 Serf collects debris. 00928_ Critical hit (Burn: +37). 00931_ Overheating: System interference. 00931_ Beam Cannon temporarily disabled. 00931_ Lgt. Assault Rifle temporarily disabled. 00931_ Targeting Computer temporarily disabled. Map ----- +----------------------------------------------------+ | # # ## #????????? | | # ######### % #????????? | | #????????? | | ##########+####### #????????? | | #???????# = ###############??? | | #???????# # #??? | | #???????# % # #??? | | ##+#####?????#! ! # """ """ """ #??? | | #?????# # """ """ """ #??? | | """ #?????# # """ """ """ #??? | | """ #?????####/### #??? | | """ #??????### #########+####+##??? | | #??????# ## #???? | | """ ######## ^ ## #???? | | """ / % """ """ ## #???? | | """ ######## """ """ ## #???? | | #?????## " " "" =##%##??? | | ########??##?## ^ # % #??? | | ?????######T### # #??? | | ?????# """ # #??? | | ?????# "Y """ # #??? | | ?????# "" "" k # #??? | | ?????# g #??? | | ??? %= #??? | | ? #/################## #??? | | ?#??????????????????#@ % #??? | | ??????????????????????# #??? | | ?????????????????######## %#??? | | ??????????????????# # #??? | | ??????????????????#""" + #??? | | ??????????????????#"R # #??? | | ??????????????????#""" # #??? | | ??????????????????# "" # #??? | | ??????????????????# # #??? | | ??????????????????######## #??? | | ???????????????????????#####+## #??? | | ???????????????????????# # #??? | | ???????????????????????# """ #* #??? | | ???????????????????????# "T" # ! #??? | | ???????????????????????# #! #??? | | ???????????????????????# # #??? | | ???????????????????????# # #??? | | ???????????????????????######## #??? | | ??????????????????????????????# #??? | | ??????????????????????????????# #??? | | ??????????????????????????????# < #??? | | ??????????????????????????????# #??? | | ??????????????????????????????#####??? | | ?????????????????????????????????????? | | ?????????????????????????????????????? | +----------------------------------------------------+ Best States ------------- Heat Dissipation 25 Energy Generation 10 Energy Capacity 250 Matter Stores 300 Matter Capacity 300 Sight Range 16 Terrain Scan Density 10 Evasion (%) 55 Targeting Accuracy 5 Item Schematics ----------------- None Robot Schematics ------------------ None Fabricated ------------ Nothing Alien Tech Used ----------------- None Achievements -------------- None Challenges ------------ None Game ------ Seed ActuatorLinearShielding Manual? 0 Play Time 00:09:18 Cumulative 23.2 hours Start 2025.05.05 @ 14:09:30 End 2025.05.05 @ 14:26:38 Sessions 1 Manual Loads 0 Difficulty Rogue Special Mode None Game No. 41 Rogue 41 Adventurer 0 Explorer 0 Win Type - Total 0 Types 0/0/0/0/0/0/0/0/0 Lore% 9 Gallery% 23 Achievement% 21 Wizard Run 0 Options --------- Layout 1 ASCII 0 Keyboard 0 Movement Mouse Keybinds 0 Fullscreen 1 Font 24/Smallcaps Map View 50x35 Zoom Use 0% Tactical HUD 1 Map Filters NONE Filters NONE Steam 1 RUN: 5eea9c0a-737c-433c-8473-8f0f19da474d